fUSD/lending_fUSD_20240101
["ID","MTS","AMOUNT","RATE_DAILY","PERIOD"]
[309797115,1704145839095,-4331.68897042,0.00034036,6]
[309797116,1704145839105,-2000.0,0.00034036,2]
[309797117,1704145839116,-200.0,0.00034036,2]
[309797118,1704145839126,-3000.0,0.00034036,2]
[309797119,1704145839136,-413.88,0.00034102,2]
[309797120,1704145839145,-314.69,0.0003411,2]
[309797121,1704145839156,-153.84,0.00034231,2]
[309797122,1704145839166,-386.877,0.00034282,2]
[309797123,1704145839176,-446.95591844,0.000348,2]
[309797124,1704145839186,-286.5,0.00034835,2]
[309797125,1704145839195,-425.13744,0.00035,2]
[309797126,1704145839206,-550.0,0.00035,3]
[309797127,1704145839216,-705.29474168,0.00035,2]
[309797128,1704145839226,-413.88,0.00035081,2]
[309797129,1704145839236,-4331.68897041,0.00035115,7]
[309797130,1704145839246,-153.84,0.00035237,2]
[309797131,1704145839256,-657.84,0.00035307,2]
[309797132,1704145839265,-421.66273291,0.00035511,4]
[309797133,1704145839275,-7891.83695746,0.00035515,4]
[309797135,1704145839285,-832.38423602,0.00035517,2]
[309797136,1704145839294,-207.0,0.00035534,11]
[309797137,1704145839304,-166.61,0.00035584,2]
[309797138,1704145839316,-151.34,0.00035616,2]
[309797139,1704145839325,-276.75,0.000357,7]
[309797140,1704145839335,-446.95591844,0.000358,2]
[309797141,1704145839344,-1000.0,0.000359,2]
[309797142,1704145839354,-300.04,0.00035999,2]
[309797143,1704145839364,-83336.30108726,0.00036,4]
[309797144,1704145839373,-185.88,0.00036052,2]
[309797145,1704145839383,-413.88,0.00036059,2]
[309797146,1704145839392,-281.91,0.00036079,2]
[309797147,1704145839402,-3238.83849728,0.00036089,2]
[309797148,1704145839412,-3238.83849728,0.00036089,2]
[309797149,1704145839421,-3238.83849728,0.00036089,2]
[309797150,1704145839431,-4331.68897041,0.00036193,9]
[309797151,1704145839441,-153.84,0.00036244,2]
[309797152,1704145839450,-249.66248278,0.000365,10]
[309797153,1704145839460,-157.77777,0.00036598,3]
[309797154,1704145839469,-167.58,0.00036671,2]
[309797155,1704145839478,-157.77777,0.00036698,3]
[309797156,1704145839488,-457.29551437,0.000367,14]
[309797157,1704145839496,-625.0,0.000367,2]
[309797158,1704145839505,-3238.83849728,0.00036742,2]
[309797159,1704145839515,-157.77777,0.00036798,3]
[309797160,1704145839523,-446.95591844,0.000368,2]
[309797161,1704145839532,-685.31,0.00036858,2]
[309797162,1704145839542,-174.85041403,0.00036894,9]
[309797163,1704145839552,-157.77777,0.00036898,3]
[309797164,1704145839563,-13600.0,0.000369,3]
[309797165,1704145839573,-1784.0,0.000369,3]
[309797166,1704145839582,-276.75,0.000369,7]
[309797167,1704145839591,-250.24790828,0.000369,2]
[309797168,1704145839601,-250.24790824,0.000369,2]
[309797169,1704145839610,-250.24790824,0.000369,2]
[309797170,1704145839619,-250.24790824,0.000369,2]
[309797171,1704145839628,-250.24790824,0.000369,2]
[309797172,1704145839637,-250.24790824,0.000369,2]
[309797173,1704145839647,-250.24790824,0.000369,2]
[309797174,1704145839656,-250.24790824,0.000369,2]
[309797175,1704145839665,-250.24790824,0.000369,2]
[309797176,1704145839674,-250.24790824,0.000369,2]
[309797177,1704145839683,-250.24790824,0.000369,2]
[309797178,1704145839693,-250.24790824,0.000369,2]
[309797179,1704145839703,-250.24790824,0.000369,2]
[309797180,1704145839712,-250.24790824,0.000369,2]
[309797181,1704145839721,-250.24790824,0.000369,2]
[309797182,1704145839730,-250.24790824,0.000369,2]
[309797183,1704145839739,-250.24790824,0.000369,2]
[309797184,1704145839749,-382.91152726,0.00036994,4]
[309797185,1704145839761,-156.8552177,0.00036994,4]
[309797186,1704145839770,-1141.17784084,0.00036994,4]
[309797187,1704145839780,-238.08291792,0.00036996,4]
[309797188,1704145839790,-387.15044374,0.00036998,2]
[309797189,1704145839799,-4601.91989485,0.00036998,4]
[309797190,1704145839809,-279.95435992,0.00036998,4]
[309797191,1704145839819,-420.24697787,0.00036998,2]
[309797192,1704145839828,-155.0,0.00036998,2]
[309797193,1704145839838,-157.23200511,0.00036998,2]
[309797194,1704145839847,-157.77777,0.00036998,3]
[309797195,1704145839857,-560.43559995,0.00036999,4]
[309797196,1704145839866,-540.53733364,0.00036999,4]
[309797197,1704145839876,-28015.5115499,0.00036999,4]
[309797198,1704145839885,-526.86634552,0.00036999,4]
[309797199,1704145839894,-227.70232845,0.00036999,4]
[309797200,1704145839904,-1321.54825561,0.00037,20]
[309797201,1704145839914,-600.0,0.00037,3]
[309797202,1704145839923,-150.0,0.00037,2]
[309797204,1704145839933,-223.28449027,0.00037,2]
[309797206,1704145839942,-175.64,0.00037,2]
[309797208,1704145839952,-413.88,0.00037037,2]
[309797210,1704145839962,-157.77777,0.00037098,3]
[309797212,1704145839971,-157.77777,0.00037198,3]
[309797214,1704145839981,-153.84,0.00037251,2]
[309797216,1704145839991,-4331.68897041,0.00037272,10]
[309797219,1704145840001,-157.77777,0.00037298,3]
[309797222,1704145840011,-150.1,0.000373,2]
[309797225,1704145840020,-393.68225135,0.00037388,4]
[309797227,1704145840029,-492.83979718,0.00037388,4]
[309797229,1704145840038,-151.77777,0.00037398,3]
[309797231,1704145840047,-241.51757549,0.000374,4]
[309797232,1704145840056,-162.53,0.00037443,15]
[309797233,1704145840066,-151.77777,0.00037498,3]
[309797234,1704145840075,-500.0,0.00037547,2]
[309797235,1704145840084,-350.77,0.00037548,2]
[309797237,1704145840093,-75000.0,0.00037562,15]
[309797239,1704145840102,-657.84,0.00037571,2]
[309797241,1704145840111,-151.77777,0.00037598,3]
[309797242,1704145840120,-800.0,0.00037663,10]
[309797244,1704145840129,-151.77777,0.00037698,3]
[309797245,1704145840138,-800.0,0.000377,13]
[309797246,1704145840147,-163.35829217,0.00037766,4]
[309797247,1704145840156,-1530.00956014,0.00037766,4]
[309797248,1704145840165,-513.70005074,0.00037766,4]
[309797249,1704145840174,-402.17174956,0.00037766,4]
[309797250,1704145840183,-2605.2545687,0.00037766,4]
[309797251,1704145840192,-16706.72309889,0.00037766,4]
[309797252,1704145840201,-155.0,0.00037766,4]
[309797253,1704145840210,-2129.994798,0.00037766,4]
[309797254,1704145840220,-245.75950104,0.00037767,4]
[309797255,1704145840229,-541.22410251,0.00037767,4]
[309797256,1704145840238,-214.21133708,0.00037768,4]
[309797257,1704145840248,-1252.88117636,0.00037768,4]
[309797258,1704145840257,-281.91,0.00037768,2]
[309797259,1704145840266,-155.0,0.00037769,4]
[309797260,1704145840388,-424.67906134,0.00037769,4]
[309797261,1704145840398,-281.91,0.0003777,2]
[309797262,1704145840407,-161.21857687,0.00037778,4]
[309797263,1704145840417,-155.0,0.00037778,4]
[309797264,1704145840426,-2500.0,0.00037778,2]
[309797265,1704145840435,-352.84792754,0.00037778,4]
[309797266,1704145840444,-650.14671211,0.00037778,4]
[309797267,1704145840454,-930.04441844,0.00037778,2]
[309797268,1704145840463,-362.5696016,0.00037778,4]
[309797269,1704145840472,-598.38979949,0.00037778,4]
[309797270,1704145840482,-200.0,0.00037778,2]
[309797271,1704145840491,-155.0,0.00037778,4]
[309797272,1704145840500,-5000.0,0.00037778,4]
[309797273,1704145840510,-574.02915906,0.00037778,4]
[309797274,1704145840519,-5000.0,0.00037778,3]
[309797275,1704145840528,-628.30262615,0.00037778,4]
[309797276,1704145840537,-271.60356637,0.00037778,4]
[309797277,1704145840546,-16450.98256788,0.00037779,2]
[309797278,1704145840556,-1074.86246861,0.00037779,4]
[309797279,1704145840566,-3059.79907205,0.00037779,4]
[309797280,1704145840575,-155.0,0.00037779,2]
[309797281,1704145840584,-201.11617094,0.00037779,2]
[309797282,1704145840594,-252199.0020256,0.0003778,4]
[309797283,1704145840606,-151.77777,0.00037798,3]
[309797284,1704145840615,-19189.72402711,0.000378,4]
[309797285,1704145840624,-383.79448054,0.000378,4]
[309797286,1704145840634,-1200.0,0.000378,13]
[309797287,1704145840643,-720.70519671,0.000378,2]
[309797288,1704145840653,-305.2728064,0.000378,2]
[309797289,1704145840662,-1344.29611529,0.000378,2]
[309797290,1704145840672,-6470.10600483,0.000378,2]
[309797291,1704145840681,-150.9118151,0.000378,2]
[309797292,1704145840689,-180.87643953,0.000378,2]
[309797293,1704145840699,-151.62198075,0.00037879,2]
[309797294,1704145840708,-158.11647884,0.00037887,28]
[309797295,1704145840716,-847.10298753,0.00037889,2]
[309797296,1704145840726,-306.34905564,0.0003789,2]
[309797297,1704145840734,-281.91,0.0003789,2]
[309797298,1704145840744,-281.91,0.0003789,2]
[309797299,1704145840753,-281.91,0.0003789,2]
[309797300,1704145840763,-306.34905564,0.0003789,2]
[309797301,1704145840772,-41252.0,0.0003789,4]
[309797302,1704145840781,-917.6980202,0.00037897,2]
[309797303,1704145840791,-229.42450505,0.00037897,2]
[309797304,1704145840800,-157.77777,0.00037898,3]
[309797305,1704145840809,-284553.61236742,0.00037899,3]
[309797306,1704145840967,-39570.10308171,0.00037899,3]
[309797307,1704145840990,-700999.34014783,0.00037899,3]
[309797308,1704145841004,-18382.26034497,0.00037899,3]
[309797309,1704145841013,-314.69,0.00037899,2]
[309797310,1704145841022,-320.10018185,0.000379,2]
[309797311,1704145841031,-190.63016,0.000379,7]
[309797312,1704145841040,-211.210807,0.000379,7]
[309797313,1704145841050,-211.210807,0.000379,7]
[309797314,1704145841059,-276.75,0.000379,7]
[309797315,1704145841071,-150.10669214,0.000379,2]
[309797316,1704145841083,-1600.0,0.000379,13]
[309797317,1704145841092,-11567.4050965,0.000379,2]
[309797318,1704145841115,-43561.00000003,0.000379,2]
[309797319,1704145841493,-759.4206536,0.00030188,2]
[309797320,1704145841686,-1154.61656839,0.00030188,2]
[309797321,1704145842633,-155.16009041,0.00024793,2]
[309797322,1704145842643,-249.1172716,0.00030188,2]
[309797323,1704145842744,-1654.94550641,0.00030188,2]
[309797324,1704145842755,-250.24790824,0.00037158,2]
[309797325,1704145842765,-267.15,0.0003777,10]
[309797326,1704145842773,-446.95591844,0.000378,2]
[309797327,1704145842783,-9350.92776311,0.000379,2]
[309797328,1704145842794,-2900.98752483,0.000379,2]
[309797329,1704145845547,-250.24790824,0.00037523,2]
[309797330,1704145845558,-216.76514273,0.000378,7]
[309797331,1704145845571,-115.5881527,0.000379,2]
[309797332,1704145845585,-493.97416667,0.000379,2]
[309797496,1704145870380,2976265.50547756,0.00023,2]
[309797497,1704145929262,188.77832841,0.00023,2]
[309797498,1704145931688,542.46432071,0.00023,2]
[309797500,1704145940047,153970.33862162,0.00023,2]
[309797501,1704145946190,358.12729033,0.000207,2]
[309797502,1704145951410,541.84949079,0.00023,2]
[309797503,1704145954722,219.86945174,0.0002211,2]
[309797505,1704145981795,11230.82200943,0.00022,2]
[309797506,1704146029841,93582.12584334,0.00023,2]
[309797507,1704146442943,250.0,0.000192,2]
[309797508,1704146590836,25000.0,0.00029,30]
[309797509,1704146614056,8000.0,0.000245,2]
[309797516,1704146933754,155.36908396,0.000245,2]
[309797517,1704146942370,155.25565101,0.000245,2]
[309797525,1704147016206,1140395.5226024,0.000245,2]
[309797538,1704147032992,-3180.04163262,0.00024984,2]
[309797539,1704147033002,-282.64689268,0.00024985,2]
[309797541,1704147033012,-1358.91693536,0.00024985,2]
[309797542,1704147033020,-155.0,0.00024986,2]
[309797544,1704147033029,-1173.5971801,0.00024986,2]
[309797545,1704147033038,-2638.73901296,0.00024987,2]
[309797547,1704147033048,-664.91904736,0.00024988,2]
[309797555,1704147033216,-425.87112219,0.00024988,2]
[309797556,1704147033229,-603.31799073,0.00024988,2]
[309797557,1704147033238,-156.08573481,0.0002499,2]
[309797558,1704147033247,-302.22367721,0.00025,2]
[309797559,1704147033256,-166.71010626,0.00025,2]
[309797560,1704147033265,-558.66593267,0.00025085,2]
[309797561,1704147033274,-150.0,0.00025087,2]
[309797562,1704147033283,-150.0,0.00025087,2]
[309797563,1704147033292,-317.52153148,0.00025088,2]
[309797564,1704147033301,-1211.9772333,0.00025088,2]
[309797565,1704147033310,-961.43364064,0.00025088,2]
[309797566,1704147033319,-440.16019155,0.00025088,4]
[309797567,1704147033328,-341.12075405,0.00025088,2]
[309797568,1704147033337,-155.22626287,0.00025088,2]
[309797569,1704147033346,-7.3160931,0.00025088,7]
[309797570,1704147033366,-432.256,0.00025088,7]
[309797572,1704147033384,-91.81858321,0.00025088,7]
[309797573,1704147033394,-343.96433609,0.00025088,2]
[309797574,1704147033403,-517.40162445,0.00025088,2]
[309797575,1704147033413,-33.96739231,0.00025089,2]
[309797576,1704147033438,-565.73454976,0.00025089,2]
[309797577,1704147033449,-643.75012406,0.00025089,2]
[309797578,1704147033458,-4254.69466108,0.0002509,2]
[309797579,1704147033467,-13917.41660045,0.0002509,2]
[309797580,1704147033476,-499.99,0.0002509,2]
[309797581,1704147033485,-156.08573481,0.00026145,2]
[309797582,1704147033494,-350.0,0.00027,3]
[309797583,1704147033503,-222.71937821,0.00027,2]
[309797584,1704147033513,-414.46305644,0.00027,2]
[309797585,1704147033522,-156.08573481,0.00027301,2]
[309797586,1704147033532,-671.27592816,0.000275,4]
[309797587,1704147033541,-210.0,0.00027596,2]
[309797588,1704147033550,-207.0,0.00027641,2]
[309797589,1704147033559,-205.0,0.00027641,2]
[309797590,1704147033569,-357.09145721,0.00027874,2]
[309797591,1704147033578,-590.86,0.00027874,2]
[309797592,1704147033587,-329.0,0.00027874,2]
[309797593,1704147033596,-639.66,0.00027874,2]
[309797594,1704147033605,-702.3826977,0.00028,6]
[309797595,1704147033614,-213.56984508,0.00028,2]
[309797596,1704147033624,-201.93519313,0.00028,2]
[309797597,1704147033634,-1000.0,0.00028382,2]
[309797598,1704147033645,-156.08573481,0.00028456,2]
[309797599,1704147033654,-400.0,0.00029,3]
[309797600,1704147033663,-651.28,0.00029256,2]
[309797601,1704147033672,-156.08573481,0.00029611,2]
[309797602,1704147033682,-194.89250728,0.000298,2]
[309797603,1704147033691,-172.56,0.00029953,2]
[309797604,1704147033700,-1247.68216497,0.0003,4]
[309797605,1704147033709,-155.0,0.0003,2]
[309797606,1704147033718,-473.3,0.00030038,2]
[309797607,1704147033727,-492.24567109,0.000301,2]
[309797608,1704147033737,-3053.35,0.00030106,2]
[309797609,1704147033746,-173.81,0.00030258,2]
[309797610,1704147033755,-9297.5892554,0.00030302,2]
[309797611,1704147033771,-2228.70392855,0.00030302,2]
[309797612,1704147033782,-1058.01904931,0.00030302,2]
[309797613,1704147033794,-250.0,0.00030302,2]
[309797614,1704147033810,-255.8730365,0.00030302,2]
[309797615,1704147033822,-1502.53473024,0.00030302,2]
[309797616,1704147033831,-438.28,0.00030411,2]
[309797617,1704147033841,-951.08,0.00030433,2]
[309797618,1704147033850,-250.0,0.0003053,2]
[309797619,1704147033859,-156.08573481,0.00030767,2]
[309797620,1704147033869,-1000.0,0.00030975,2]
[309797621,1704147033878,-23900.0,0.00030976,2]
[309797622,1704147033887,-150.0,0.00030988,2]
[309797623,1704147033898,-1555.41001203,0.00031,7]
[309797624,1704147033909,-450.0,0.00031,3]
[309797625,1704147033918,-343.68553094,0.00031007,2]
[309797626,1704147033927,-182.11,0.00031076,2]
[309797627,1704147033937,-9661.04068811,0.000311,4]
[309797628,1704147033946,-158.29,0.00031107,2]
[309797629,1704147033957,-155.43,0.00031163,2]
[309797630,1704147033967,-250.0,0.00031168,2]
[309797631,1704147033978,-155.43,0.00031248,2]
[309797632,1704147033990,-155.43,0.00031334,2]
[309797633,1704147033998,-951.08,0.00031411,2]
[309797634,1704147034007,-155.43,0.00031419,2]
[309797635,1704147034017,-158.29,0.00031496,2]
[309797636,1704147034028,-155.43,0.00031505,2]
[309797637,1704147034038,-651.28,0.0003152,2]
[309797638,1704147034047,-155.43,0.0003159,2]
[309797639,1704147034056,-155.43,0.00031676,2]
[309797640,1704147034066,-171.88,0.00031742,2]
[309797641,1704147034076,-155.43,0.00031761,2]
[309797642,1704147034086,-2075.51,0.00031767,2]
[309797643,1704147034096,-528.79,0.00031792,2]
[309797644,1704147034106,-155.43,0.00031847,2]
[309797645,1704147034116,-185.88,0.00031883,2]
[309797646,1704147034126,-158.29,0.00031885,2]
[309797647,1704147034135,-156.08573481,0.00031922,2]
[309797648,1704147034144,-155.43,0.00031932,2]
[309797649,1704147034153,-160.0,0.00032,2]
[309797650,1704147034163,-155.43,0.00032018,2]
[309797651,1704147034184,-157.35,0.00032026,2]
[309797652,1704147034196,-155.43,0.00032103,2]
[309797653,1704147034206,-155.43,0.00032189,2]
[309797654,1704147034216,-158.29,0.00032274,2]
[309797655,1704147034226,-155.43,0.00032274,2]
[309797656,1704147034237,-155.43,0.0003236,2]
[309797657,1704147034248,-951.08,0.0003239,2]
[309797658,1704147034259,-155.43,0.00032445,2]
[309797659,1704147034271,-175.29,0.00032489,2]
[309797660,1704147034280,-155.43,0.00032531,2]
[309797661,1704147034290,-155.43,0.00032616,2]
[309797662,1704147034300,-3529.28,0.00032624,2]
[309797663,1704147034309,-158.29,0.00032662,2]
[309797664,1704147034319,-155.43,0.00032702,2]
[309797665,1704147034328,-155.43,0.00032787,2]
[309797666,1704147034338,-156.26,0.00032793,2]
[309797667,1704147034348,-162.53,0.00032877,15]
[309797668,1704147034358,-276.01258675,0.000329,2]
[309797669,1704147034367,-681.0,0.000329,2]
[309797670,1704147034376,-469.0,0.000329,2]
[309797671,1704147034386,-1500.0,0.000329,2]
[309797672,1704147034396,-250.0,0.000329,2]
[309797673,1704147034406,-1000.0,0.000329,2]
[309797674,1704147034416,-500.0,0.00033,3]
[309797675,1704147034426,-207.0,0.00033034,11]
[309797676,1704147034436,-158.29,0.00033051,2]
[309797677,1704147034446,-156.08573481,0.00033078,2]
[309797678,1704147034456,-1000.0,0.00033141,2]
[309797679,1704147034466,-173.81,0.00033284,2]
[309797680,1704147034475,-951.08,0.00033368,2]
[309797681,1704147034485,-203.56,0.00033394,2]
[309797682,1704147034495,-158.29,0.0003344,2]
[309797683,1704147034505,-832.38423602,0.000335,2]
[309797684,1704147034515,-153.84,0.00033583,2]
[309797685,1704147034525,-651.28,0.00033784,2]
[309797686,1704147034535,-158.29,0.00033829,2]
[309797687,1704147034547,-150.0,0.00033899,2]
[309797688,1704147034556,-223.28449027,0.00033899,2]
[309797689,1704147034566,-175.64,0.00033899,2]
[309797690,1704147034576,-1000.0,0.00034,4]
[309797691,1704147034586,-14037.0,0.000342,3]
[309797692,1704147034595,-2085.0,0.000342,3]
[309797693,1704147034605,-158.29,0.00034218,2]
[309797694,1704147034614,-156.08573481,0.00034233,2]
[309797695,1704147034624,-763.004,0.000343,2]
[309797696,1704147034634,-2426.9102,0.000343,2]
[309797697,1704147034646,-5660.3934,0.000343,2]
[309797698,1704147034655,-2500.0,0.000343,2]
[309797699,1704147034665,-160.0,0.00034337,2]
[309797700,1704147034674,-951.08,0.00034347,2]
[309797701,1704147034684,-169.15,0.0003438,2]
[309797702,1704147034694,-150.02,0.00034389,2]
[309797703,1704147034703,-150.02,0.00034389,2]
[309797704,1704147034713,-341.06135646,0.00034389,30]
[309797705,1704147034722,-94867.93542616,0.0003439,7]
[309797706,1704147034738,-92506.73878184,0.0003439,7]
[309797707,1704147034748,-604.37422057,0.0003439,2]
[309797708,1704147034757,-169.15,0.0003439,2]
[309797709,1704147034766,-169.15,0.0003439,2]
[309797710,1704147034776,-169.15,0.0003439,2]
[309797711,1704147034786,-451.15043136,0.00034397,2]
[309797712,1704147034799,-341.06135645,0.00034399,30]
[309797713,1704147034809,-555.36957537,0.00034399,2]
[309797714,1704147034819,-163603.90347369,0.000344,2]
[309797715,1704147034835,-14305.4864439,0.000344,2]
[309797716,1704147034989,1140395.5226024,0.000245,2]
[309797718,1704147037802,-690.57856772,0.00025084,2]
[309797719,1704147037812,-343.68553094,0.00032672,2]
[309797720,1704147037822,-42.05052738,0.00034337,2]
[309797721,1704147037834,-301.63500356,0.00034337,2]
[309797722,1704147037843,-150.0,0.00034389,2]
[309797723,1704147037853,-150.0,0.00034389,2]
[309797724,1704147037863,-150.0,0.00034389,2]
[309797725,1704147037873,-10.25716607,0.00034389,2]
[309797726,1704147037886,-139.74283393,0.00034389,2]
[309797727,1704147037896,-150.0,0.00034389,2]
[309797728,1704147037907,-76.06114424,0.00034389,2]
[309797729,1704147037920,-73.93885576,0.00034389,2]
[309797730,1704147037930,-150.0,0.00034389,2]
[309797731,1704147037941,-150.0,0.00034389,2]
[309797732,1704147037950,-883.42114855,0.000344,2]
[309797733,1704147037974,-13182.58322357,0.000344,2]
[309797734,1704147037985,-2713.4001,0.000344,2]
[309797735,1704147037998,-1173.933,0.000344,2]
[309797736,1704147038019,-44534.18100174,0.000344,2]
[309797737,1704147038036,-8164.40147666,0.000344,2]
[309797754,1704147040278,-1962.8986,0.000344,2]
[309797755,1704147040291,-700.43927189,0.000344,2]
[309797756,1704147040305,-648.37714593,0.000344,2]
[309797757,1704147040975,-500.0,0.000344,2]
[309797758,1704147040986,-250.0,0.000344,2]
[309797759,1704147041085,-5041.03486649,0.000344,2]
[309797760,1704147041099,-1106.40335378,0.000344,2]
[309797761,1704147041114,-667.79630865,0.000344,2]
[309797762,1704147041129,-307.99853445,0.000344,2]
[309797765,1704147042629,-4381.6,0.000344,2]
[309797766,1704147042641,-1310.7663,0.000344,2]
[309797767,1704147042656,-480.11657429,0.000344,2]
[309797768,1704147042760,-972.39925064,0.000344,2]
[309797769,1704147042774,-4708.53464461,0.000344,2]
[309797770,1704147042786,-5033.29980582,0.000344,2]
[309797771,1704147042822,-346.98199227,0.000344,2]
[309797772,1704147042833,-5964.9440951,0.000344,2]
[309797773,1704147042854,-4294.9,0.000344,2]
[309797774,1704147042910,-2121.87615936,0.000344,2]
[309797775,1704147042922,-548.87967985,0.000344,2]
[309797798,1704147045938,-1000.0,0.00033809,2]
[309797799,1704147045948,-371.13903797,0.00034399,2]
[309797800,1704147045958,-379.75590188,0.00034399,4]
[309797801,1704147045967,-46070.65948206,0.000344,2]
[309797802,1704147045979,-28008.542073,0.000344,2]
[309797804,1704147045992,-15747.23684465,0.000344,2]
[309798126,1704147059531,-250.0,0.0004,120]
[309798163,1704148231828,-282.64689268,0.00024535,2]
[309798164,1704148231839,-167.35310732,0.00024536,2]
[309798165,1704148231866,-115.29378536,0.00024536,2]
[309798166,1704148231876,-584.70621464,0.00024536,2]
[309798167,1704148231889,-1129.24535294,0.00024536,2]
[309798168,1704148231902,-484.10191491,0.00024536,2]
[309798169,1704148231926,-981.98815013,0.00024536,2]
[309798170,1704148231937,-535.95048787,0.00024536,2]
[309798171,1704148231949,-3720.62180172,0.00024536,2]
[309798172,1704148231960,-1991.36462531,0.00024537,2]
[309798173,1704148231970,-150.0,0.00024538,2]
[309798174,1704148231980,-2955.4553,0.00024539,2]
[309798175,1704148231990,-210.60429093,0.0002454,2]
[309798176,1704148232000,-210.60429078,0.00025153,2]
[309798177,1704148232010,-491.56,0.00025153,2]
[309798178,1704148232020,-1090.33,0.00025153,2]
[309798179,1704148232030,-2482.74,0.00025153,2]
[309798180,1704148232041,-499.99,0.00025153,2]
[309798181,1704148232051,-210.60429078,0.00025765,2]
[309798182,1704148232061,-210.60429078,0.00026378,2]
[309798183,1704148232071,-380.2,0.00026378,2]
[309798184,1704148232081,-599.27,0.00026378,2]
[309798185,1704148232091,-1532.9,0.00026378,2]
[309798186,1704148232101,-210.60429078,0.0002699,2]
[309798187,1704148232111,-210.0,0.00026992,2]
[309798188,1704148232121,-1250.0,0.00027,3]
[309798189,1704148232131,-6203.98,0.00027104,2]
[309798190,1704148232141,-210.60429078,0.00027603,2]
[309798191,1704148232151,-500.0,0.00027821,2]
[309798192,1704148232161,-2577.68,0.00027856,2]
[309798194,1704148232170,-200.0,0.00027933,2]
[309798196,1704148232182,-210.60429078,0.00028215,2]
[309798198,1704148232193,-210.60429078,0.00028828,2]
[309798200,1704148232202,-155.44851412,0.00028998,2]
[309798202,1704148232212,-1016.64858306,0.00028998,2]
[309798204,1704148232222,-158.83747841,0.00028999,2]
[309798206,1704148232232,-1760.61072916,0.00028999,2]
[309798208,1704148232241,-1300.0,0.00029,3]
[309798210,1704148232251,-59905.32,0.00029,2]
[309798212,1704148232261,-5126.26,0.00029067,2]
[309798214,1704148232271,-150.0,0.00029082,2]
[309798216,1704148232280,-795.6,0.0002911,2]
[309798218,1704148232289,-5126.26,0.00029235,2]
[309798220,1704148232299,-5126.26,0.00029402,2]
[309798222,1704148232308,-210.60429078,0.0002944,2]
[309798224,1704148232317,-5126.26,0.0002957,2]
[309798226,1704148232327,-430.16,0.00029614,2]
[309798228,1704148232336,-150.97750141,0.0002963,2]
[309798230,1704148232346,-250.0,0.00029683,2]
[309798232,1704148232355,-219.0,0.00029692,2]
[309798234,1704148232364,-3364.28527771,0.00029738,2]
[309798237,1704148232376,-1186.69011417,0.00029738,2]
[309798239,1704148232387,-269.42731393,0.00029738,2]
[309798241,1704148232399,-305.85729419,0.00029738,2]
[309798243,1704148232408,-4052.74270581,0.00029906,2]
[309798246,1704148232430,-1073.51729419,0.00029906,2]
[309798248,1704148232440,-3667.33,0.00029999,20]
[309798250,1704148232450,-37460.00858347,0.0003,4]
[309798254,1704148232477,-783.78704333,0.0003,4]
[309798256,1704148232489,-1027.25834614,0.0003,4]
[309798260,1704148232514,-871.76452214,0.0003,4]
[309798829,1704148238158,-207.0,0.00023641,2]
[309798830,1704148238173,-207.0,0.000297,11]
[309798831,1704148238189,-3670.06243434,0.0003,4]
[309798832,1704148238207,-1660.7156476,0.0003,4]
[309798833,1704148238221,-675.83425205,0.0003,4]
[309798834,1704148238233,-1449.38033194,0.0003,4]
[309798835,1704148238246,-445.59668688,0.0003,4]
[309798836,1704148238259,-210.60429078,0.00030053,2]
[309798837,1704148238274,-5126.26,0.00030074,2]
[309798838,1704148238289,-23900.0,0.00030082,2]
[309798839,1704148238301,-565.91,0.00030133,2]
[309798840,1704148238316,-4911.07,0.00030181,2]